2CCN - Level 2 Cost Centre Name,,9CCN - Level 9 Cost Centre Name,9CCC - Level 9 Cost Centre Code,9AN - Level 9 Account Name,9AC - Level 9 Account Code,Date posted,Date of transaction,Merchant Name,Merchant City,Originating Account Name,Originating Account Number,MCC/SIC Code,MCC Description,Original Amount,Currency,Conversion Rate,Billed Amount,Debit Credit,Reference Number,Statement Cycle,Account Name
Gloucester City Council,23UE,TOURISM MARKETING,LT100,OPERATIONAL EQUIPMENT <5000,5012,2016-10-24,2016-10-21,ARGOS RETAIL GROUP,INTERNET,REDACTED,471*********4015,5310,DISCOUNT STORES,34.99,Pound Sterling (826),1,34.99,Debit,74579156297001477099713,2016-11-02,GLOUCESTER CC
Gloucester City Council,23UE,BUSINESS TRANSFORMATION & TECH,RT700,COMPUTER HARDWARE <5000,5420,2016-11-02,2016-11-01,STAPLES UK,GLOUCESTER 05,REDACTED,471*********1715,5943,STATIONERY  OFFICE AND SCHOOL SUPPLY STO,134.48,Pound Sterling (826),1,134.48,Debit,74579156307000877658712,2016-11-02,GLOUCESTER CC
Gloucester City Council,23UE,HOMELESSNESS,CH120,BOARD AND LODGING,5515,2016-10-04,2016-10-03,TRAVELODGE WEBSITE,RESERVATION,REDACTED,471*********1443,3615,TRAVELODGE,128,Pound Sterling (826),1,128,Debit,74830506277298155202370,2016-11-02,GLOUCESTER CC
Gloucester City Council,23UE,HOMELESSNESS,CH120,BOARD AND LODGING,5515,2016-10-05,2016-10-04,TRAVELODGE WEBSITE,RESERVATION,REDACTED,471*********1443,3615,TRAVELODGE,191,Pound Sterling (826),1,191,Debit,74830506278298167871872,2016-11-02,GLOUCESTER CC
Gloucester City Council,23UE,HOMELESSNESS,CH120,BOARD AND LODGING,5515,2016-10-07,2016-10-06,TRAVELODGE WEBSITE,RESERVATION,REDACTED,471*********1443,3615,TRAVELODGE,201,Pound Sterling (826),1,201,Debit,74830506280298191500816,2016-11-02,GLOUCESTER CC
Gloucester City Council,23UE,HOMELESSNESS,CH120,BOARD AND LODGING,5515,2016-10-11,2016-10-10,TRAVELODGE WEBSITE,RESERVATION,REDACTED,471*********1443,3615,TRAVELODGE,432,Pound Sterling (826),1,432,Debit,74830506284298145166843,2016-11-02,GLOUCESTER CC
Gloucester City Council,23UE,HOMELESSNESS,CH120,BOARD AND LODGING,5515,2016-10-12,2016-10-11,TRAVELODGE WEBSITE,RESERVATION,REDACTED,471*********1443,3615,TRAVELODGE,74,Pound Sterling (826),1,74,Debit,74830506285298156827050,2016-11-02,GLOUCESTER CC
Gloucester City Council,23UE,HOMELESSNESS,CH120,BOARD AND LODGING,5515,2016-10-12,2016-10-11,TRAVELODGE WEBSITE,RESERVATION,REDACTED,471*********1443,3615,TRAVELODGE,420,Pound Sterling (826),1,420,Debit,74830506285298156898754,2016-11-02,GLOUCESTER CC
Gloucester City Council,23UE,HOMELESSNESS,CH120,BOARD AND LODGING,5515,2016-10-13,2016-10-12,TRAVELODGE WEBSITE,RESERVATION,REDACTED,471*********1443,3615,TRAVELODGE,323,Pound Sterling (826),1,323,Debit,74830506286298168408039,2016-11-02,GLOUCESTER CC
Gloucester City Council,23UE,HOMELESSNESS,CH120,BOARD AND LODGING,5515,2016-10-14,2016-10-13,TRAVELODGE WEBSITE,RESERVATION,REDACTED,471*********1443,3615,TRAVELODGE,445,Pound Sterling (826),1,445,Debit,74830506287298180625221,2016-11-02,GLOUCESTER CC
Gloucester City Council,23UE,HOMELESSNESS,CH120,BOARD AND LODGING,5515,2016-10-17,2016-10-14,TRAVELODGE WEBSITE,RESERVATION,REDACTED,471*********1443,3615,TRAVELODGE,296,Pound Sterling (826),1,296,Debit,74830506288298192945822,2016-11-02,GLOUCESTER CC
Gloucester City Council,23UE,HOMELESSNESS,CH120,BOARD AND LODGING,5515,2016-10-18,2016-10-17,TRAVELODGE WEBSITE,RESERVATION,REDACTED,471*********1443,3615,TRAVELODGE,53,Pound Sterling (826),1,53,Debit,74830506291298132830063,2016-11-02,GLOUCESTER CC
Gloucester City Council,23UE,HOMELESSNESS,CH120,BOARD AND LODGING,5515,2016-10-18,2016-10-17,TRAVELODGE WEBSITE,RESERVATION,REDACTED,471*********1443,3615,TRAVELODGE,309,Pound Sterling (826),1,309,Debit,74830506291298132875951,2016-11-02,GLOUCESTER CC
Gloucester City Council,23UE,HOMELESSNESS,CH120,BOARD AND LODGING,5515,2016-10-19,2016-10-18,TRAVELODGE WEBSITE,RESERVATION,REDACTED,471*********1443,3615,TRAVELODGE,170,Pound Sterling (826),1,170,Debit,74830506292298144925371,2016-11-02,GLOUCESTER CC
Gloucester City Council,23UE,HOMELESSNESS,CH120,BOARD AND LODGING,5515,2016-10-31,2016-10-28,TRAVELODGE WEBSITE,RESERVATION,REDACTED,471*********1443,3615,TRAVELODGE,248,Pound Sterling (826),1,248,Debit,74830506302298171136536,2016-11-02,GLOUCESTER CC
Gloucester City Council,23UE,HOMELESSNESS,CH120,BOARD AND LODGING,5515,2016-11-01,2016-10-31,TRAVELODGE WEBSITE,RESERVATION,REDACTED,471*********1443,3615,TRAVELODGE,468,Pound Sterling (826),1,468,Debit,74830506305298111537063,2016-11-02,GLOUCESTER CC
Gloucester City Council,23UE,HOMELESSNESS,CH120,BOARD AND LODGING,5515,2016-11-01,2016-10-31,TRAVELODGE WEBSITE,RESERVATION,REDACTED,471*********1443,3615,TRAVELODGE,468,Pound Sterling (826),1,468,Debit,74830506305298111604889,2016-11-02,GLOUCESTER CC
Gloucester City Council,23UE,HOMELESSNESS,CH120,BOARD AND LODGING,5515,2016-11-02,2016-11-01,TRAVELODGE WEBSITE,RESERVATION,REDACTED,471*********1443,3615,TRAVELODGE,450,Pound Sterling (826),1,450,Debit,74830506306298123560052,2016-11-02,GLOUCESTER CC
Gloucester City Council,23UE,DOCKS COMPLEX - SERVICES,RB100,OTHER MINOR SUPPLIES SERVICES,5590,2016-10-13,2016-10-12,JMPRIME.CO.UK,0203 0869001,REDACTED,471*********8223,5085,INDUSTRIAL SUPPLIES NOT ELSEWHERE CLASSI,67.2,Pound Sterling (826),1,67.2,Debit,74579156287006179037103,2016-11-02,GLOUCESTER CC
Gloucester City Council,23UE,DOCKS COMPLEX - SERVICES,RB100,OTHER MINOR SUPPLIES SERVICES,5590,2016-10-19,2016-10-18,B & Q 1179,GLOUCESTER,REDACTED,471*********8223,5211,LUMBER AND BUILDING MATERIALS STORES,19.62,Pound Sterling (826),1,19.62,Debit,74579156293009578553359,2016-11-02,GLOUCESTER CC
Gloucester City Council,23UE,DOCKS COMPLEX - SERVICES,RB100,OTHER MINOR SUPPLIES SERVICES,5590,2016-10-21,2016-10-20,SAINSBURYS SUPERMA,GLOUCESTER QU,REDACTED,471*********8223,5411,GROCERY STORES  SUPERMARKETS,17.2,Pound Sterling (826),1,17.2,Debit,74579156295008871842160,2016-11-02,GLOUCESTER CC
Gloucester City Council,23UE,RETAIL MARKET - LANDLORD,HM300,CLEANING / DOMESTIC EQUIPMENT,5011,2016-10-18,2016-10-17,HOMEBASE LTD,STROUD,REDACTED,471*********8476,5211,LUMBER AND BUILDING MATERIALS STORES,24.56,Pound Sterling (826),1,24.56,Debit,74579156292009478099769,2016-11-02,GLOUCESTER CC
Gloucester City Council,23UE,CCTV REVENUE BUDGET,FP501,HOSPITALITY,5122,2016-10-26,2016-10-25,PAYPAL *GLOBALMSCSE,35314369001,REDACTED,471*********8476,8999,PROFESSIONAL SERVICES NOT ELSEWHERE CLASSIFIED,126.48,Pound Sterling (826),1,126.48,Debit,74998766299642846864142,2016-11-02,GLOUCESTER CC
Gloucester City Council,23UE,SOLACE PROJECT,FP843,OTHER MINOR SUPPLIES SERVICES,5590,2016-10-27,2016-10-26,TRAVELODGE WEBSITE,RESERVATION,REDACTED,471*********8476,3615,TRAVELODGE,80,Pound Sterling (826),1,80,Debit,74830506300298144593781,2016-11-02,GLOUCESTER CC
Gloucester City Council,23UE,HOUSING STRATEGY & ENABLING,CH110,CONFERENCE/MEETING EXPENSES,5510,2016-10-06,2016-10-04,INTER CONTINE,LONDON,REDACTED,471*********3663,3512,INTERCONTINENTAL HOTELS,189,Pound Sterling (826),1,189,Debit,74579156280002977855322,2016-11-02,GLOUCESTER CC
Gloucester City Council,23UE,FOLK MUSEUM,LM210,CATERING PROVISIONS -FOOD,5110,2016-10-19,2016-10-18,WWW.UKVENDINGLTD.CO.UK,INTERNET,REDACTED,471*********9523,5999,MISCELLANEOUS AND RETAIL STORES,47.03,Pound Sterling (826),1,47.03,Debit,74745096293020091072949,2016-11-02,GLOUCESTER CC
Gloucester City Council,23UE,FOLK MUSEUM,LM210,PUBLICATIONS FOR SALE,5064,2016-10-19,2016-10-18,WWW.LABELPLANET.CO.UK,INTERNET,REDACTED,471*********9523,5943,STATIONERY  OFFICE AND SCHOOL SUPPLY STO,63,Pound Sterling (826),1,63,Debit,74678586293020091910396,2016-11-02,GLOUCESTER CC
Gloucester City Council,23UE,FOLK MUSEUM,LM210,CATERING PROVISIONS -FOOD,5110,2016-10-19,2016-10-18,ASDA SUPERSTORE,GLOUCESTER,REDACTED,471*********9523,5411,GROCERY STORES  SUPERMARKETS,47.87,Pound Sterling (826),1,47.87,Debit,74698176293020134295199,2016-11-02,GLOUCESTER CC
Gloucester City Council,23UE,CITY MUSEUM AND ART GALLERY,LM200,OPERATIONAL EQUIPMENT <5000,5012,2016-10-20,2016-10-19,REPLACEMENTKEYSCOUK,4.42081E+11,REDACTED,471*********9523,5399,MISCELLANEOUS GENERAL MERCHANDISE STORES,5.9,Pound Sterling (826),1,5.9,Debit,74648926293130400747168,2016-11-02,GLOUCESTER CC
Gloucester City Council,23UE,CITY MUSEUM CATERING,LM202,CATERING PROVISIONS -FOOD,5110,2016-10-21,2016-10-20,BOOKER LIMITED GLOUCESTER,GLOUCESTER,REDACTED,471*********9523,5811,CATERERS,115.52,Pound Sterling (826),1,115.52,Debit,74463656294922945664591,2016-11-02,GLOUCESTER CC
Gloucester City Council,23UE,FOLK MUSEUM,LM210,EVENTS,5952,2016-10-24,2016-10-22,SAINSBURYS,GLOUCESTER,REDACTED,471*********9523,5411,GROCERY STORES  SUPERMARKETS,4.45,Pound Sterling (826),1,4.45,Debit,74579156297004673747143,2016-11-02,GLOUCESTER CC
Gloucester City Council,23UE,GUILDHALL BAR AND CAF�,LA210,CATERING PROVISIONS -FOOD,5110,2016-10-03,2016-10-01,ASDA SUPERSTORE,GLOUCESTER,REDACTED,471*********2470,5411,GROCERY STORES  SUPERMARKETS,29.92,Pound Sterling (826),1,29.92,Debit,74698176276000655993191,2016-11-02,GLOUCESTER CC
Gloucester City Council,23UE,GUILDHALL BAR AND CAF�,LA210,CATERING PROVISIONS -FOOD,5110,2016-10-10,2016-10-07,ASDA SUPERSTORE,GLOUCESTER,REDACTED,471*********2470,5411,GROCERY STORES  SUPERMARKETS,22,Pound Sterling (826),1,22,Debit,74698176282050180479333,2016-11-02,GLOUCESTER CC
Gloucester City Council,23UE,GUILDHALL BAR AND CAF�,LA210,CATERING PROVISIONS -FOOD,5110,2016-10-11,2016-10-10,TESCO STORE 2581,GLOUCESTER,REDACTED,471*********2470,5411,GROCERY STORES  SUPERMARKETS,48.12,Pound Sterling (826),1,48.12,Debit,74697056285060239260297,2016-11-02,GLOUCESTER CC
Gloucester City Council,23UE,GUILDHALL BAR AND CAF�,LA210,CATERING PROVISIONS -FOOD,5110,2016-10-18,2016-10-17,WM MORRISON STORE,575 GLOUCESTE,REDACTED,471*********2470,5411,GROCERY STORES  SUPERMARKETS,4.45,Pound Sterling (826),1,4.45,Debit,74579156292002970102603,2016-11-02,GLOUCESTER CC
Gloucester City Council,23UE,GUILDHALL BAR AND CAF�,LA210,CATERING PROVISIONS -FOOD,5110,2016-10-24,2016-10-22,B&M RETAIL LTD,HS GLOUCESTER,REDACTED,471*********2470,5310,DISCOUNT STORES,1,Pound Sterling (826),1,1,Debit,74579156297007478484853,2016-11-02,GLOUCESTER CC
Gloucester City Council,23UE,GUILDHALL BAR AND CAF�,LA210,CATERING PROVISIONS -FOOD,5110,2016-10-27,2016-10-26,ASDA SUPERSTORE,GLOUCESTER,REDACTED,471*********2470,5411,GROCERY STORES  SUPERMARKETS,69.47,Pound Sterling (826),1,69.47,Debit,74698176301080142452851,2016-11-02,GLOUCESTER CC
Gloucester City Council,23UE,GUILDHALL BAR AND CAF�,LA210,CATERING PROVISIONS -FOOD,5110,2016-10-28,2016-10-27,MARKS&SPENCER PLC,GLOUCESTER,REDACTED,471*********2470,5411,GROCERY STORES  SUPERMARKETS,12.85,Pound Sterling (826),1,12.85,Debit,74698166302090167105300,2016-11-02,GLOUCESTER CC
Gloucester City Council,23UE,GUILDHALL BAR AND CAF�,LA210,CATERING PROVISIONS -FOOD,5110,2016-10-28,2016-10-27,FAT TONI S GLOUCESTER LTD,GLOUCESTER,REDACTED,471*********2470,5814,FAST FOOD RESTAURANTS,81,Pound Sterling (826),1,81,Debit,74463656301933011962810,2016-11-02,GLOUCESTER CC
Gloucester City Council,23UE,GUILDHALL BAR AND CAF�,LA210,CATERING PROVISIONS -FOOD,5110,2016-10-28,2016-10-27,FAT TONI S GLOUCESTER LTD,GLOUCESTER,REDACTED,471*********2470,5814,FAST FOOD RESTAURANTS,59,Pound Sterling (826),1,59,Debit,74463656301933011962935,2016-11-02,GLOUCESTER CC
Gloucester City Council,23UE,GUILDHALL BAR AND CAF�,LA210,CATERING PROVISIONS -FOOD,5110,2016-10-28,2016-10-27,B&M RETAIL LTD,HS GLOUCESTER,REDACTED,471*********2470,5310,DISCOUNT STORES,5.28,Pound Sterling (826),1,5.28,Debit,74579156302002073851963,2016-11-02,GLOUCESTER CC
Gloucester City Council,23UE,GUILDHALL BAR AND CAF�,LA210,CATERING PROVISIONS -FOOD,5110,2016-11-01,2016-10-31,WM MORRISON STORE,575 GLOUCESTE,REDACTED,471*********2470,5411,GROCERY STORES  SUPERMARKETS,27.92,Pound Sterling (826),1,27.92,Debit,74579156306008776080749,2016-11-02,GLOUCESTER CC
Gloucester City Council,23UE,GUILDHALL BAR AND CAF�,LA210,CATERING PROVISIONS -FOOD,5110,2016-11-02,2016-11-01,BOOKER LIMITED GLOUCESTER,GLOUCESTER,REDACTED,471*********2470,5811,CATERERS,62.61,Pound Sterling (826),1,62.61,Debit,74463656306923060190483,2016-11-02,GLOUCESTER CC
Gloucester City Council,23UE,HEAD OF REGENERATION & ECO DEV,GO102,PUBLIC TRANSPORTATION,4061,2016-10-06,2016-10-05,TRAINLINE.COM LTD,LONDON,REDACTED,471*********4841,4112,PASSENGER RAILWAYS,77.42,Pound Sterling (826),1,77.42,Debit,74998866279639810736977,2016-11-02,GLOUCESTER CC
Gloucester City Council,23UE,PLANNING POLICY & HERITAGE,PT300,PUBLIC TRANSPORTATION,4061,2016-10-11,2016-10-10,TRAINLINE.COM LTD,LONDON,REDACTED,471*********4841,4112,PASSENGER RAILWAYS,172.38,Pound Sterling (826),1,172.38,Debit,74998866284640959010722,2016-11-02,GLOUCESTER CC
Gloucester City Council,23UE,NMS CONTRACT,HI102,PUBLIC TRANSPORTATION,4061,2016-10-11,2016-10-10,TRAINLINE.COM LTD,LONDON,REDACTED,471*********4841,4112,PASSENGER RAILWAYS,232.25,Pound Sterling (826),1,232.25,Debit,74998866284640959004709,2016-11-02,GLOUCESTER CC
Gloucester City Council,23UE,COUNCIL STREETCARE TEAM,HI101,PUBLIC TRANSPORTATION,4061,2016-10-13,2016-10-12,TRAINLINE.COM LTD,LONDON,REDACTED,471*********4841,4112,PASSENGER RAILWAYS,15.45,Pound Sterling (826),1,15.45,Debit,74998866286640022860085,2016-11-02,GLOUCESTER CC
Gloucester City Council,23UE,GROUP MGR CULT SER & TOURISM,GR102,PUBLIC TRANSPORTATION,4061,2016-10-13,2016-10-12,TRAINLINE.COM LTD,LONDON,REDACTED,471*********4841,4112,PASSENGER RAILWAYS,92.82,Pound Sterling (826),1,92.82,Debit,74998866286640022864343,2016-11-02,GLOUCESTER CC
Gloucester City Council,23UE,COUNCIL STREETCARE TEAM,HI101,PUBLIC TRANSPORTATION,4061,2016-10-18,2016-10-17,TRAINLINE.COM LTD,LONDON,REDACTED,471*********4841,4112,PASSENGER RAILWAYS,12.7,Pound Sterling (826),1,12.7,Debit,74998866291641171325568,2016-11-02,GLOUCESTER CC
Gloucester City Council,23UE,ECONOMIC DEVELOPMENT,FP300,PUBLIC TRANSPORTATION,4061,2016-10-18,2016-10-17,TRAINLINE.COM LTD,LONDON,REDACTED,471*********4841,4112,PASSENGER RAILWAYS,95.47,Pound Sterling (826),1,95.47,Debit,74998866291641171362280,2016-11-02,GLOUCESTER CC
Gloucester City Council,23UE,COUNCIL STREETCARE TEAM,HI101,PUBLIC TRANSPORTATION,4061,2016-10-18,2016-10-17,TRAINLINE.COM LTD,LONDON,REDACTED,471*********4841,4112,PASSENGER RAILWAYS,60.28,Pound Sterling (826),1,60.28,Debit,74998866291641171295266,2016-11-02,GLOUCESTER CC
Gloucester City Council,23UE,COUNCIL STREETCARE TEAM,HI101,PUBLIC TRANSPORTATION,4061,2016-10-18,2016-10-17,TRAINLINE.COM LTD,LONDON,REDACTED,471*********4841,4112,PASSENGER RAILWAYS,15.45,Pound Sterling (826),1,15.45,Debit,74998866291641171295043,2016-11-02,GLOUCESTER CC
Gloucester City Council,23UE,HOMELESSNESS,CH120,PUBLIC TRANSPORTATION,4061,2016-10-18,2016-10-17,TRAINLINE.COM LTD,LONDON,REDACTED,471*********4841,4112,PASSENGER RAILWAYS,26.98,Pound Sterling (826),1,26.98,Debit,74998866291641171338439,2016-11-02,GLOUCESTER CC
Gloucester City Council,23UE,COUNCIL STREETCARE TEAM,HI101,PUBLIC TRANSPORTATION,4061,2016-10-19,2016-10-18,TRAINLINE.COM LTD,LONDON,REDACTED,471*********4841,4112,PASSENGER RAILWAYS,15.45,Pound Sterling (826),1,15.45,Debit,74998866292641207452872,2016-11-02,GLOUCESTER CC
Gloucester City Council,23UE,MEMBERS SUPPORT,RC300,PUBLIC TRANSPORTATION,4061,2016-10-21,2016-10-20,TRAINLINE.COM LTD,LONDON,REDACTED,471*********4841,4112,PASSENGER RAILWAYS,172.38,Pound Sterling (826),1,172.38,Debit,74998866294641270332850,2016-11-02,GLOUCESTER CC
Gloucester City Council,23UE,CIVIC ADMIN AND HOSPITALITY,RC210,VEHICLE LICENCES,4015,2016-10-25,2016-10-24,DVLA VEHICLE TAX,0300 1234321,REDACTED,471*********4841,9399,GOVERNMENT SERVICES NOT ELSEWHERE CLASSIFIED,118,Pound Sterling (826),1,118,Debit,74579156299003075511923,2016-11-02,GLOUCESTER CC
Gloucester City Council,23UE,COUNCIL STREETCARE TEAM,HI101,PUBLIC TRANSPORTATION,4061,2016-10-31,2016-10-28,TRAINLINE.COM LTD,LONDON,REDACTED,471*********4841,4112,PASSENGER RAILWAYS,84.15,Pound Sterling (826),1,84.15,Debit,74998866302643515484652,2016-11-02,GLOUCESTER CC
Gloucester City Council,23UE,MEMBERS SUPPORT,RC300,PUBLIC TRANSPORTATION,4061,2016-11-02,2016-11-01,TRAINLINE,LONDON,REDACTED,471*********4841,4112,PASSENGER RAILWAYS,134.95,Pound Sterling (826),1,134.95,Debit,74998866306643639267211,2016-11-02,GLOUCESTER CC
Gloucester City Council,23UE,GUILDHALL EVENTS,LA200,ADVERTISING AND PUBLICITY,5702,2016-10-03,2016-09-30,FACEBK ZH5WP9AE72,www.fb.me/ads,REDACTED,471*********6962,7311,ADVERTISING SERVICES,32.97,Pound Sterling (826),1,32.97,Debit,74987506274370234161234,2016-11-02,GLOUCESTER CC
Gloucester City Council,23UE,GUILDHALL EVENTS,LA200,FEES FOR SERVICES RECEIVED,5350,2016-10-03,2016-09-30,PAYPAL *PARTY PACKS,35314369001,REDACTED,471*********6962,7399,BUSINESS SERVICES NOT ELSEWHERE CLASSIFIED,-34.68,Pound Sterling (826),1,-34.68,Credit,74998866274639652244937,2016-11-02,GLOUCESTER CC
Gloucester City Council,23UE,GUILDHALL EVENTS,LA200,ADVERTISING AND PUBLICITY,5702,2016-10-10,2016-10-07,TWITTER*ADVERTISING,TWITTER.COM,REDACTED,471*********6962,7311,ADVERTISING SERVICES,2,Pound Sterling (826),1,2,Debit,74313226281000386780900,2016-11-02,GLOUCESTER CC
Gloucester City Council,23UE,GUILDHALL EVENTS,LA200,FEES FOR SERVICES RECEIVED,5350,2016-10-11,2016-10-10,MIPERMIT PARKING-DOM,INTERNET,REDACTED,471*********6962,7523,AUTOMOBILE PARKING LOTS AND GARAGES,10,Pound Sterling (826),1,10,Debit,74745106285060092243237,2016-11-02,GLOUCESTER CC
Gloucester City Council,23UE,GUILDHALL EVENTS,LA200,FEES FOR SERVICES RECEIVED,5350,2016-10-11,2016-10-10,MIPERMIT PARKING-DOM,INTERNET,REDACTED,471*********6962,7523,AUTOMOBILE PARKING LOTS AND GARAGES,10,Pound Sterling (826),1,10,Debit,74745106285060092243849,2016-11-02,GLOUCESTER CC
Gloucester City Council,23UE,GUILDHALL EVENTS,LA200,FEES FOR SERVICES RECEIVED,5350,2016-10-11,2016-10-10,MIPERMIT PARKING-DOM,INTERNET,REDACTED,471*********6962,7523,AUTOMOBILE PARKING LOTS AND GARAGES,10,Pound Sterling (826),1,10,Debit,74745106285060092244144,2016-11-02,GLOUCESTER CC
Gloucester City Council,23UE,GLOUCESTER GUILDHALL,LA100,GENERAL REPAIR/MAINT BUILDINGS,3000,2016-10-12,2016-10-11,WILKO RETAIL LIMIT,GLOUCESTER 14,REDACTED,471*********6962,5722,HOUSEHOLD APPLIANCE STORES,6,Pound Sterling (826),1,6,Debit,74579156286005170807119,2016-11-02,GLOUCESTER CC
Gloucester City Council,23UE,BLACKFRIARS,LA609,ADVERTISING AND PUBLICITY,5702,2016-10-17,2016-10-14,WWW.INSTANTPRINT.C,01709 382202,REDACTED,471*********6962,7338,QUICK-COPY AND REPRODUCTION SERVICES,22.99,Pound Sterling (826),1,22.99,Debit,74579156289000177586235,2016-11-02,GLOUCESTER CC
Gloucester City Council,23UE,GUILDHALL EVENTS,LA200,ADVERTISING AND PUBLICITY,5702,2016-10-17,2016-10-14,WPCHRG.COM B9C2ADQ2IY,HTTPSWORDPRES,REDACTED,471*********6962,7372,COMPUTER AND DATA PROCESSING SERVICES,30,Pound Sterling (826),1,30,Debit,24492156288637001663134,2016-11-02,GLOUCESTER CC
Gloucester City Council,23UE,BLACKFRIARS,LA609,GENERAL REPAIR/MAINT BUILDINGS,3000,2016-10-19,2016-10-18,SCREWFIX DIRECT,GLOUCESTER EA,REDACTED,471*********6962,5211,LUMBER AND BUILDING MATERIALS STORES,8.27,Pound Sterling (826),1,8.27,Debit,74579156293000474654425,2016-11-02,GLOUCESTER CC
Gloucester City Council,23UE,GLOUCESTER GUILDHALL,LA100,GENERAL REPAIR/MAINT BUILDINGS,3000,2016-10-20,2016-10-19,WILKO RETAIL LIMIT,GLOUCESTER 14,REDACTED,471*********6962,5722,HOUSEHOLD APPLIANCE STORES,20.05,Pound Sterling (826),1,20.05,Debit,74579156294001170820731,2016-11-02,GLOUCESTER CC
Gloucester City Council,23UE,GUILDHALL EVENTS,LA200,FEES FOR SERVICES RECEIVED,5350,2016-10-26,2016-10-25,MIPERMIT PARKING-DOM,INTERNET,REDACTED,471*********6962,7523,AUTOMOBILE PARKING LOTS AND GARAGES,10,Pound Sterling (826),1,10,Debit,74745106300070092875293,2016-11-02,GLOUCESTER CC
Gloucester City Council,23UE,GUILDHALL EVENTS,LA200,FEES FOR SERVICES RECEIVED,5350,2016-10-27,2016-10-26,MIPERMIT PARKING-DOM,INTERNET,REDACTED,471*********6962,7523,AUTOMOBILE PARKING LOTS AND GARAGES,10,Pound Sterling (826),1,10,Debit,74745106301080096120157,2016-11-02,GLOUCESTER CC
Gloucester City Council,23UE,GUILDHALL EVENTS,LA200,FEES FOR SERVICES RECEIVED,5350,2016-10-28,2016-10-27,POST OFFICE COUNTER,GLOUCESTER,REDACTED,471*********6962,9402,POSTAGE STAMPS,22.28,Pound Sterling (826),1,22.28,Debit,74830506301194244750869,2016-11-02,GLOUCESTER CC
Gloucester City Council,23UE,GUILDHALL EVENTS,LA200,ADVERTISING AND PUBLICITY,5702,2016-11-01,2016-10-31,FACEBK NYNV4A6E72,www.fb.me/ads,REDACTED,471*********6962,7311,ADVERTISING SERVICES,40.37,Pound Sterling (826),1,40.37,Debit,74987506305415674781547,2016-11-02,GLOUCESTER CC
Gloucester City Council,23UE,FINANCIAL SERVICES,RT200,FEES FOR SERVICES RECEIVED,5350,2016-10-05,2016-10-04,WWW.GAMBLINGCOMMIS,0121 2306500,REDACTED,471*********7309,8999,PROFESSIONAL SERVICES NOT ELSEWHERE CLASSIFIED,244,Pound Sterling (826),1,244,Debit,74579156279007474872475,2016-11-02,GLOUCESTER CC
Gloucester City Council,23UE,INHOUSE TRAINING,EH200,VOCATIONAL TRAINING,2970,2016-10-19,2016-10-18,WWW.CIPS.ORG,0845 8801188,REDACTED,471*********7309,8699,MEMBERSHIP ORGANIZATIONS NOT ELSEWHERE CLASSIFIED,132.6,Pound Sterling (826),1,132.6,Debit,74579156293008974734589,2016-11-02,GLOUCESTER CC
Gloucester City Council,23UE,CLIENT REVS & BENS CONTRACT,RT240,COURT FEES,5358,2016-10-25,2016-10-24,HMCOURTS-SERVICE.G,1452420100,REDACTED,471*********7309,9222,FINES,1842,Pound Sterling (826),1,1842,Debit,74579156299002671897124,2016-11-02,GLOUCESTER CC
Gloucester City Council,23UE,FOOD SAFETY,HE100,LICENCES,9301,2016-10-27,2016-10-25,CIEH,LNDON SE1 001,REDACTED,471*********7309,8699,MEMBERSHIP ORGANIZATIONS NOT ELSEWHERE CLASSIFIED,279,Pound Sterling (826),1,279,Debit,74830506299039375186512,2016-11-02,GLOUCESTER CC
